bitfinex/quotes_ETHUSD_20251126
["timestamp","ask_amount","ask_price","bid_price","bid_amount"]
[1764151640238,2.24145427,2918.4,2918.3,0.121]
[1764151641632,5.59487085,2918.4,2918.3,0.121]
[1764151643905,6.51743581,2918.4,2918.3,0.121]
[1764151650639,5.59487085,2918.4,2918.3,0.121]
[1764151652148,5.59423418,2918.4,2918.3,0.121]
[1764151652312,6.51908793,2918.4,2918.3,0.121]
[1764151653539,2.96641171,2918.4,2918.3,0.121]
[1764151654750,3.89126546,2918.4,2918.3,0.121]
[1764151655442,3.89046546,2918.4,2918.3,0.121]
[1764151656446,3.89056546,2918.4,2918.3,0.121]
[1764151656656,4.10756546,2918.4,2918.3,0.121]
[1764151658459,3.18271171,2918.4,2918.3,0.121]
[1764151663886,4.4110695,2918.4,2918.3,0.121]
[1764151664756,4.4004695,2918.4,2918.3,0.121]
[1764151665553,3.17211171,2918.4,2918.3,0.121]
[1764151670276,4.4004695,2918.4,2918.3,0.121]
[1764151672110,2.19411171,2918.4,2918.3,0.5932]
[1764151672311,5.9656072,2918.4,2918.3,1.0567]
[1764151672604,5.9656072,2918.4,2918.3,0.5932]
[1764151674615,6.03397302,2918.4,2918.3,0.5932]
[1764151675114,5.4171,2918.4,2918.3,0.121]
[1764151675320,6.34369388,2918.4,2918.3,0.121]
[1764151675786,6.80559388,2918.4,2918.3,0.121]
[1764151675989,5.879,2918.4,2918.3,0.121]
[1764151676320,6.8055724,2918.4,2918.3,0.121]
[1764151676685,6.3436724,2918.4,2918.3,0.121]
[1764151678750,8.57518829,2918.4,2918.3,0.121]
[1764151678957,3.8272864,2918.1,2918.0,0.001]
[1764151679234,4.8929,2918.1,2918.0,0.001]
[1764151679442,4.8929,2918.1,2918.0,0.4732]
[1764151679741,4.8883,2918.1,2918.0,0.4732]
[1764151680247,4.8875,2918.1,2918.0,0.4732]
[1764151680599,4.8875,2918.1,2918.0,0.9367]
[1764151680921,1.78660771,2918.1,2918.0,0.9367]
[1764151681111,4.482796,2918.1,2918.0,0.9367]
[1764151682000,4.8883,2918.1,2918.0,0.9367]
[1764151682304,4.8883,2918.1,2918.0,0.4732]
[1764151683037,4.8883,2918.1,2918.0,0.9512]
[1764151683226,4.88890122,2918.1,2918.0,0.9512]
[1764151689802,4.89090122,2918.1,2918.0,0.9512]
[1764151692337,4.89090122,2918.1,2918.0,0.4732]
[1764151695714,7.58708951,2918.1,2918.0,0.4732]
[1764151696747,7.87118951,2918.1,2918.0,0.001]
[1764151697052,4.89090122,2918.1,2918.0,0.4558]
[1764151698147,4.89090122,2918.1,2918.0,0.9423]
[1764151699955,8.04758951,2918.1,2918.0,0.001]
[1764151700627,8.36028951,2918.1,2918.0,0.001]
[1764151701128,9.28684085,2918.1,2918.0,0.001]
[1764151703533,8.97414085,2918.1,2918.0,0.001]
[1764151703945,8.97414085,2918.1,2918.0,0.4558]
[1764151703946,4.89090122,2918.1,2918.0,0.4558]
[1764151704469,4.89090122,2918.1,2918.0,0.9423]
[1764151704855,4.89010122,2918.1,2918.0,0.9423]
[1764151705169,4.48459722,2918.1,2918.0,0.9423]
[1764151705377,0.32373182,2918.1,2918.0,0.9423]
[1764151705535,0.32373182,2918.1,2918.0,4.36930479]
[1764151706150,0.002,2918.1,2918.0,4.36930479]
[1764151706863,2.69618829,2918.5,2918.0,4.36930479]
[1764151706864,0.002,2918.7,2918.0,16.19031916]
[1764151707059,0.002,2918.7,2918.6,0.4548]
[1764151707479,0.72559411,2918.6,2918.1,0.1979]
[1764151707659,1.13309811,2918.1,2918.0,0.001]
[1764151707858,1.45402237,2918.1,2918.0,0.001]
[1764151708171,1.45402237,2918.1,2918.0,0.4558]
[1764151708942,1.76862237,2918.1,2918.0,0.001]
[1764151709138,4.46481066,2918.1,2918.0,0.001]
[1764151709572,1.76862237,2918.1,2918.0,0.001]
[1764151710951,2.25622237,2918.1,2918.0,0.001]
[1764151711153,4.46481066,2918.1,2918.0,0.001]
[1764151711382,1.76862237,2918.1,2918.0,0.001]
[1764151711881,4.46481066,2918.1,2918.0,0.001]
[1764151712081,3.01911255,2918.1,2918.0,0.4558]
[1764151712247,3.42461655,2918.1,2918.0,0.4558]
[1764151712971,3.42461655,2918.1,2918.0,0.9423]
[1764151715544,3.01911255,2918.1,2918.0,4.36930479]
[1764151717477,3.01911255,2918.1,2918.0,0.4558]
[1764151717675,3.01911255,2918.1,2918.0,0.9423]
[1764151717880,3.01911255,2918.1,2918.0,4.36930479]
[1764151718246,3.74470666,2918.1,2918.0,4.36930479]
[1764151718656,3.74470666,2918.1,2918.0,3.88280479]
[1764151718861,3.74470666,2918.1,2918.0,4.36930479]
[1764151720685,3.74470666,2918.1,2918.0,0.4558]
[1764151720891,4.46481066,2918.1,2918.0,0.001]
[1764151721387,4.15021066,2918.1,2918.0,0.4558]
[1764151723390,4.15021066,2918.1,2918.0,0.9423]
[1764151723798,0.32292426,2918.1,2918.0,4.36930479]
[1764151723953,0.002,2918.1,2918.0,4.36930479]
[1764151724155,0.002,2918.1,2918.0,6.93940252]
[1764151724387,0.002,2918.4,2918.0,13.7934121]
[1764151724589,0.002,2918.4,2918.3,0.6594]
[1764151724796,0.002,2918.4,2918.3,0.8764]
[1764151725005,0.002,2918.4,2918.3,1.3428]
[1764151725172,2.69818829,2918.4,2918.3,1.1258]
[1764151725362,2.69818829,2918.4,2918.3,4.3669525]
[1764151725859,2.69818829,2918.4,2918.3,0.4739]
[1764151726191,2.69818829,2918.4,2918.3,4.3669525]
[1764151729501,0.002,2918.4,2918.3,4.3669525]
[1764151729687,0.0012,2918.4,2918.3,4.3669525]
[1764151730197,0.0012,2918.4,2918.3,5.9069525]
[1764151732294,2.69738829,2918.4,2918.3,2.0139]
[1764151732670,2.69738829,2918.4,2918.3,5.4405525]
[1764151733006,2.69738829,2918.4,2918.3,5.9069525]
[1764151735223,2.69738829,2918.4,2918.3,2.4803]
[1764151735398,2.69738829,2918.4,2918.3,5.9069525]
[1764151735597,2.69738829,2918.4,2918.3,2.0139]
[1764151736229,2.69738829,2918.4,2918.3,3.9005525]
[1764151736394,2.69738829,2918.4,2918.3,4.3669525]
[1764151736723,0.0012,2918.4,2918.3,4.3669525]
[1764151741631,0.0012,2918.4,2918.3,4.3679525]
[1764151746306,0.0012,2918.4,2918.3,5.09554661]
[1764151746935,0.0012,2918.4,2918.3,6.63554661]
[1764151747336,0.002,2918.7,2918.3,13.48885161]
[1764151747533,0.002,2918.7,2918.6,0.4501]
[1764151747703,0.002,2918.7,2918.6,3.87640028]
[1764151747904,0.002,2918.7,2918.6,4.34820028]
[1764151751624,0.002,2918.7,2918.6,5.07379439]
[1764151752426,0.002,2918.7,2918.6,6.61379439]
[1764151754444,0.0012,2918.7,2918.6,6.61379439]
[1764151757632,0.0012,2918.7,2918.6,6.14199439]
[1764151757828,0.0012,2918.7,2918.6,6.35899439]
[1764151758078,0.3371,2918.7,2918.6,5.18330028]
[1764151758571,0.0012,2918.7,2918.6,5.67370028]
[1764151758733,0.0012,2918.7,2918.6,5.18330028]
[1764151758931,0.0012,2918.7,2918.6,6.12970028]
[1764151760658,0.0012,2918.7,2918.6,5.67370028]
[1764151761743,0.0012,2918.7,2918.6,5.45670028]
[1764151764254,0.4549,2919.0,2918.7,0.19844]
[1764151764456,0.3422,2918.8,2918.7,1.73844]
[1764151764960,0.9838,2918.8,2918.7,1.73844]
[1764151765167,0.9838,2918.8,2918.7,5.16462288]
[1764151766956,0.9838,2918.8,2918.7,0.19844]
[1764151766957,1.389304,2918.8,2918.7,0.19844]
[1764151767179,1.70985876,2918.8,2918.7,0.19844]
[1764151769851,0.405504,2918.7,2918.3,3.42761706]
[1764151770078,0.0045,2918.4,2918.3,3.42761706]
[1764151770582,0.4574,2918.4,2918.3,0.001]
[1764151773105,0.77794999,2918.4,2918.3,0.001]
[1764151774510,0.77787185,2918.4,2918.3,0.001]
[1764151775270,0.4574,2918.4,2918.3,0.001]
[1764151777710,0.862904,2918.4,2918.3,0.001]
[1764151778011,1.400212,2918.4,2918.3,0.001]
[1764151779073,1.199772,2918.4,2918.3,0.001]
[1764151793696,0.405504,2918.3,2918.0,0.001]
[1764151793901,3.75914295,2918.1,2918.0,0.001]
[1764151794103,4.07945095,2918.1,2918.0,0.001]
[1764151794326,4.55105095,2918.1,2918.0,0.001]
[1764151795719,5.29007264,2918.1,2918.0,0.001]
[1764151797927,6.51843043,2918.1,2918.0,0.001]
[1764151798501,9.28529113,2918.1,2918.0,0.001]
[1764151799432,8.05693334,2918.1,2918.0,0.001]
[1764151800539,9.28529113,2918.1,2918.0,0.001]
[1764151800744,3.82855088,2917.6,2917.4,0.001]
[1764151800913,6.02802257,2917.6,2917.4,0.001]
[1764151801099,5.57648057,2917.6,2917.4,0.001]
[1764151801735,6.49906687,2917.6,2917.4,0.001]
[1764151802542,5.57648057,2917.6,2917.4,0.001]
[1764151803756,5.57568057,2917.6,2917.4,0.001]
[1764151803954,5.57648057,2917.6,2917.4,0.001]
[1764151806057,1.05932969,2917.6,2917.5,0.4992]
[1764151806284,0.9225863,2918.2,2917.6,0.72559411]
[1764151806554,0.002,2919.0,2918.3,0.684]
[1764151806755,0.002,2919.0,2918.6,0.4982]
[1764151807058,0.002,2919.0,2918.6,0.9977]
[1764151807261,0.002,2919.0,2918.6,3.91415277]
[1764151807419,0.002,2919.0,2918.9,3.92414813]
[1764151807928,0.002,2919.0,2918.9,4.42364813]
[1764151808537,0.002,2919.0,2918.9,0.9977]
[1764151809253,0.002,2919.0,2918.9,0.4982]
[1764151809456,0.002,2919.0,2918.9,3.92414813]
[1764151809638,0.002,2919.0,2918.9,0.4982]
[1764151810790,0.002,2919.0,2918.9,0.9977]
[1764151812856,0.002,2919.0,2918.5,0.4995]
[1764151813067,0.002,2919.0,2918.4,7.35257016]
[1764151813268,0.002,2919.0,2918.9,0.4982]
[1764151814493,0.002,2919.0,2918.9,0.9874]
[1764151814787,0.002,2919.0,2918.9,0.4982]
[1764151817100,0.002,2919.0,2918.9,0.9874]
[1764151817858,0.002,2919.0,2918.9,0.4982]
[1764151818967,0.002,2919.0,2918.9,3.92414813]
[1764151819316,0.002,2919.0,2918.9,4.41334813]
[1764151825151,0.002,2919.0,2918.9,5.95334813]
[1764151827399,0.002,2919.0,2918.9,6.09062332]
[1764151827603,0.002,2919.0,2918.9,6.30762332]
[1764151828524,0.0012,2919.0,2918.9,6.30762332]
[1764151836752,0.0012,2919.0,2918.9,4.76762332]
[1764151837495,0.0012,2919.0,2918.9,7.46048049]
[1764151838547,0.0012,2919.0,2918.9,4.76762332]
[1764151839086,0.0012,2919.0,2918.9,4.55062332]
[1764151839390,0.0012,2919.0,2918.9,4.76762332]
[1764151839689,0.0012,2919.0,2918.9,4.41334813]
[1764151839850,0.0012,2919.0,2918.9,4.63034813]
[1764151844109,0.0012,2919.0,2918.9,4.63134813]
[1764151847489,0.0012,2919.0,2918.9,4.14214813]
[1764151848378,0.0012,2919.0,2918.9,4.60554813]
[1764151853193,0.0004,2919.0,2918.9,4.60554813]
[1764151854897,0.0004,2919.0,2918.9,6.14554813]
[1764151860118,0.0004,2919.0,2918.9,6.14004813]
[1764151862147,0.0004,2919.0,2918.9,5.67664813]
[1764151862856,0.3956,2919.0,2918.9,5.18394813]
[1764151864649,0.8539,2919.0,2918.9,5.18394813]
[1764151864959,0.8539,2919.0,2918.9,1.541]
[1764151865256,0.8539,2919.0,2918.9,0.001]
[1764151865257,1.17537676,2919.0,2918.9,0.001]
[1764151874053,0.71707676,2919.0,2918.9,0.001]
[1764151874277,0.3956,2919.0,2918.9,0.001]
[1764151875602,0.3956,2919.0,2918.9,1.541]
[1764151877181,0.8539,2919.0,2918.9,1.541]
[1764151877795,1.17476874,2919.0,2918.9,4.96694813]
[1764151878110,1.17396874,2919.0,2918.9,4.96694813]
[1764151878299,1.17396874,2919.0,2918.9,1.541]
[1764151879197,1.17596874,2919.0,2918.9,4.96694813]
[1764151880114,0.71766874,2919.0,2918.9,4.96694813]
[1764151881627,0.71766874,2919.0,2918.9,3.42694813]
[1764151884322,0.71766874,2919.0,2918.9,0.001]
[1764151885221,1.17596874,2919.0,2918.9,0.001]
[1764151887460,1.17596874,2919.0,2918.9,1.541]
[1764151888562,1.17596874,2919.0,2918.9,4.96694813]
[1764151890351,0.71766874,2919.0,2918.9,4.96694813]
[1764151893343,0.71766874,2919.0,2918.9,3.42694813]
[1764151894080,1.17586874,2919.0,2918.9,3.42694813]
[1764151894735,1.17586874,2919.0,2918.9,0.001]
[1764151899197,1.17662811,2919.0,2918.9,0.001]
[1764151902674,1.17582811,2919.0,2918.9,0.001]
[1764151903814,0.71762811,2919.0,2918.9,0.001]
[1764151904809,1.17582811,2919.0,2918.9,0.001]
[1764151905501,1.17582811,2919.0,2918.9,1.03081132]
[1764151905719,0.32362811,2919.0,2918.9,1.98591132]
[1764151907114,0.32362811,2919.0,2918.9,4.91575945]
[1764151911332,0.32362811,2919.0,2918.9,6.45575945]
[1764151911809,0.69682811,2919.0,2918.9,6.45575945]
[1764151912533,0.69682811,2919.0,2918.9,5.99675945]
[1764151916050,0.32362811,2919.0,2918.9,6.45575945]
[1764151917113,0.32362811,2919.0,2918.9,6.95185945]
[1764151918146,0.32362811,2919.0,2918.9,6.45575945]
[1764151919943,0.69682811,2919.0,2918.9,5.99675945]
[1764151920620,1.17562811,2919.0,2918.9,5.99675945]
[1764151923129,1.17562811,2919.0,2918.9,4.45675945]
[1764151924036,1.17562811,2919.0,2918.9,1.03081132]
[1764151924458,1.17562811,2919.0,2918.9,4.45675945]
[1764151925723,0.32362811,2919.0,2918.9,5.41875945]
[1764151925929,0.32362811,2919.0,2918.9,4.92005945]
[1764151926155,0.32362811,2919.0,2918.9,5.41875945]
[1764151927450,0.32282811,2919.0,2918.9,5.41875945]
[1764151927772,0.32282811,2919.0,2918.9,4.92005945]
[1764151928773,0.32282811,2919.0,2918.9,4.91400945]
[1764151929134,0.32282811,2919.0,2918.9,6.45400945]
[1764151929467,0.32282811,2919.0,2918.9,6.45500945]
[1764151930167,0.32282811,2919.0,2918.9,6.95370945]
[1764151931950,0.32282811,2919.0,2918.9,6.45500945]
[1764151932334,0.32282811,2919.0,2918.9,6.95370945]
[1764151935637,0.32282811,2919.0,2918.9,6.45500945]
[1764151935838,0.32282811,2919.0,2918.9,6.94890945]
[1764151938351,0.0012,2919.0,2918.9,9.64239684]
[1764151939087,0.0012,2919.0,2918.9,6.94890945]
[1764151940400,0.0012,2919.0,2918.9,6.45500945]
[1764151940678,0.0012,2919.0,2918.9,6.67200945]
[1764151941046,0.0012,2919.0,2918.9,7.16590945]
[1764151952110,0.0004,2919.0,2918.9,7.16590945]
[1764151954396,0.0004,2919.0,2918.9,6.67200945]
[1764151954787,0.0004,2919.0,2918.9,7.16590945]
[1764151959369,0.8527,2919.0,2918.9,5.99170945]
[1764151959605,0.8527,2919.0,2918.9,4.45170945]
[1764151959777,1.57829411,2919.0,2918.9,0.001]
[1764151960102,1.89929937,2919.0,2918.9,0.001]
[1764151961047,4.59278676,2919.0,2918.9,0.001]
[1764151961220,4.99829076,2919.0,2918.9,0.001]
[1764151961391,5.73760221,2919.0,2918.9,0.001]
[1764151961590,5.87495093,2919.0,2918.9,0.001]
[1764151962232,5.73760221,2919.0,2918.9,0.001]
[1764151962695,3.04411482,2919.0,2918.9,0.001]
[1764151963030,5.95460221,2919.0,2918.9,0.001]
[1764151963189,8.6480896,2919.0,2918.9,0.001]
[1764151963390,1.13109811,2918.9,2918.6,0.001]
[1764151963605,4.0247855,2918.7,2918.6,0.001]
[1764151963810,4.34579076,2918.7,2918.6,0.001]
[1764151964027,4.84379076,2918.7,2918.6,0.001]
[1764151964229,5.58233747,2918.7,2918.6,0.001]
[1764151964531,4.84379076,2918.7,2918.6,0.001]
[1764151966931,5.48788037,2918.7,2918.6,0.001]
[1764151967129,8.91882579,2918.7,2918.6,0.001]
[1764151967301,9.41163166,2918.7,2918.6,0.001]
[1764151968025,9.41048139,2918.7,2918.6,0.001]
[1764151970412,8.67302336,2918.7,2918.6,0.001]
[1764151970802,8.18021749,2918.7,2918.6,0.001]
[1764151971031,8.39721749,2918.7,2918.6,0.001]
[1764151971412,8.89002336,2918.7,2918.6,0.001]
[1764151975207,9.62524846,2918.7,2918.6,0.001]
[1764151976134,1.13109811,2918.6,2918.3,0.001]
[1764151976320,3.337577,2918.3,2918.1,0.001]
[1764151976521,0.31985499,2918.5,2918.1,0.001]
[1764151976522,4.69634049,2918.2,2918.1,0.001]
[1764151976723,4.3764855,2918.2,2918.1,0.001]
[1764151976934,4.8736855,2918.2,2918.1,0.001]
[1764151978039,1.55849411,2918.2,2918.1,0.001]
[1764151978216,4.4689815,2918.2,2918.1,0.001]
[1764151980544,1.77549411,2918.2,2918.1,0.001]
[1764151981315,2.50005437,2918.2,2918.1,0.001]
[1764151981521,5.20795437,2918.2,2918.1,0.001]
[1764151981705,6.33043724,2918.2,2918.1,0.001]
[1764151983035,5.83763137,2918.2,2918.1,0.001]
[1764151984916,2.50005437,2918.2,2918.1,0.001]
[1764151985649,4.61886737,2918.2,2918.1,0.001]
[1764151985856,2.50005437,2918.2,2918.1,0.001]
[1764151986343,3.23655463,2918.2,2918.1,0.001]
[1764151986655,5.83585563,2918.2,2918.1,0.001]
[1764151987034,6.57413163,2918.2,2918.1,0.001]
[1764151987223,3.23655463,2918.2,2918.1,0.001]
[1764151988944,6.41536763,2918.2,2918.1,0.001]
[1764151989141,6.57413163,2918.2,2918.1,0.001]
[1764151990222,7.0669375,2918.2,2918.1,0.001]
[1764151990423,2.12320398,2918.1,2917.5,0.001]
[1764151990737,7.61922227,2917.6,2917.5,0.001]
[1764151990936,8.89177879,2917.6,2917.5,0.001]
[1764151991128,9.37997879,2917.6,2917.5,0.001]
[1764151991324,3.00815063,2917.6,2917.5,0.001]
[1764151991525,1.99815063,2917.6,2917.5,0.4691]
[1764151991953,1.62875037,2917.6,2917.5,0.001]
[1764151992361,2.36808337,2917.6,2917.5,0.001]
[1764151994477,5.40233453,2917.6,2917.5,0.001]
[1764151994623,5.88933453,2917.6,2917.5,0.001]
[1764151995564,5.40233453,2917.6,2917.5,0.001]
[1764151996832,2.00098337,2917.6,2917.5,0.4795]
[1764151998329,1.13109811,2917.5,2917.4,0.001]
[1764151998557,7.61430338,2917.5,2917.4,0.001]
[1764151998772,4.27672638,2917.5,2917.4,0.001]
[1764151999153,6.73351738,2917.5,2917.4,0.001]
[1764151999344,3.04478737,2917.5,2917.4,0.001]
[1764151999730,3.96916695,2917.5,2917.4,0.001]
[1764152001644,3.96836695,2917.5,2917.4,0.001]
[1764152002074,7.61230338,2917.5,2917.4,0.001]
[1764152002375,7.30631938,2917.5,2917.4,0.001]
[1764152003029,7.05084902,2917.5,2917.4,0.001]
[1764152003230,5.23981001,2917.5,2917.4,0.001]
[1764152003572,3.96825345,2917.5,2917.4,0.001]
[1764152004255,7.30583045,2917.5,2917.4,0.001]
[1764152004626,6.38204521,2917.5,2917.4,0.001]
[1764152005229,3.04446821,2917.5,2917.4,0.001]
[1764152005465,6.38204521,2917.5,2917.4,0.001]
[1764152005684,5.27734721,2917.5,2917.4,0.001]
[1764152005865,2.70867813,2917.5,2917.4,0.4795]
[1764152006163,1.0600701,2917.5,2917.4,0.4795]
[1764152006332,1.0600701,2917.5,2917.4,0.953]
[1764152006934,0.3207371,2917.5,2917.4,0.953]
[1764152010476,0.3207371,2917.5,2917.4,4.3807096]
[1764152011477,0.3207371,2917.5,2917.4,0.953]
[1764152013458,0.217,2917.6,2917.4,4.38069717]
[1764152013658,0.217,2917.6,2917.5,0.952]
[1764152013857,0.53796007,2917.6,2917.5,0.952]
[1764152014485,0.32096007,2917.6,2917.5,0.952]
[1764152014676,3.57134127,2917.9,2917.5,0.952]
[1764152014877,0.32294403,2917.8,2917.5,0.952]
[1764152015098,0.32094403,2917.7,2917.5,0.952]
[1764152015281,0.32094403,2917.6,2917.5,0.952]
[1764152015454,0.32094403,2917.6,2917.5,0.4735]
[1764152015656,0.32094403,2917.6,2917.5,0.952]
[1764152016180,0.32094403,2917.6,2917.5,4.37959211]
[1764152016382,0.002,2917.8,2917.5,7.80718422]
[1764152016559,0.002,2917.8,2917.7,0.4785]
[1764152016982,0.002,2917.8,2917.7,0.952]
[1764152018564,0.002,2917.8,2917.7,4.37935716]
[1764152020806,0.002,2917.8,2917.7,5.91935716]
[1764152021912,0.002,2918.1,2917.7,12.91139426]
[1764152022118,0.002,2918.1,2918.0,0.4785]
[1764152022614,0.002,2918.8,2918.1,0.6531]
[1764152022784,0.002,2918.8,2918.4,0.4785]
[1764152023202,0.002,2918.8,2918.4,0.952]
[1764152024822,0.002,2918.8,2918.4,4.37853508]
[1764152025787,0.002,2918.8,2918.4,4.57893508]
[1764152026306,0.0012,2918.5,2918.4,4.57893508]
[1764152027630,0.0012,2918.5,2918.4,3.88723508]
[1764152028142,0.0012,2918.5,2918.3,3.64359902]
[1764152028494,0.0012,2918.5,2918.4,0.4607]
[1764152028699,0.0012,2918.5,2918.4,0.9354]
[1764152028908,0.0012,2918.5,2918.4,4.36193508]
[1764152029435,0.0012,2918.5,2918.4,3.42653508]
[1764152029833,0.0012,2918.5,2918.4,0.4607]
[1764152030030,0.0012,2918.5,2918.4,0.9354]
[1764152030424,0.0012,2918.5,2918.4,2.4754]
[1764152032202,0.0012,2918.5,2918.4,5.90193508]
[1764152033232,0.0012,2918.5,2918.4,6.11893508]
[1764152034235,0.0012,2918.5,2918.4,5.90193508]
[1764152034415,0.0012,2918.5,2918.4,6.11893508]
[1764152036833,0.0012,2918.5,2918.4,5.64423508]
[1764152037222,0.0012,2918.5,2918.4,6.11893508]
[1764152043686,0.0012,2918.5,2918.4,8.81300549]
[1764152043983,0.0012,2918.5,2918.4,8.95029528]
[1764152044152,0.002,2918.8,2918.5,1.5388]
[1764152044355,0.002,2918.8,2918.7,0.4504]
[1764152044762,0.002,2918.8,2918.7,1.05887895]
[1764152045574,0.002,2918.8,2918.7,4.48506183]
[1764152045787,0.002,2918.8,2918.7,4.34778288]
[1764152045937,0.002,2918.8,2918.7,4.56478288]
[1764152047384,0.002,2918.8,2918.7,4.34778288]
[1764152047547,0.002,2918.8,2918.7,4.56478288]
[1764152050877,0.002,2918.8,2918.7,6.10358288]
[1764152051080,0.0012,2918.8,2918.7,6.10358288]
[1764152051395,0.0012,2918.8,2918.7,5.63238288]
[1764152052377,0.0012,2918.8,2918.7,6.10358288]
[1764152052580,0.0012,2918.8,2918.7,5.88658288]
[1764152052760,0.0012,2918.8,2918.7,6.10358288]
[1764152055062,0.0012,2918.8,2918.7,5.88658288]
[1764152055268,0.0012,2918.8,2918.7,6.10358288]
[1764152058399,0.0012,2918.8,2918.7,5.88658288]
[1764152058605,0.0012,2918.8,2918.7,5.63238288]
[1764152058778,0.0012,2918.8,2918.7,6.12578288]
[1764152060395,0.3804,2918.8,2918.7,4.96498288]
[1764152060593,0.0012,2918.8,2918.7,5.18198288]
[1764152060802,0.3815,2918.8,2918.7,5.18198288]
[1764152061008,0.3815,2918.8,2918.7,4.96498288]
[1764152061319,0.8782,2918.8,2918.7,4.96498288]
[1764152061500,0.8782,2918.8,2918.7,5.18198288]
[1764152061906,0.8782,2918.8,2918.7,4.96498288]
[1764152062425,0.8782,2918.8,2918.7,5.18198288]
[1764152065415,0.0012,2918.8,2918.7,5.65288288]
[1764152066793,0.0012,2918.8,2918.7,6.14628288]
[1764152067196,0.0012,2918.8,2918.7,5.65288288]
[1764152067598,0.0012,2918.8,2918.7,6.14628288]
[1764152073131,0.4833,2918.8,2918.7,5.18198288]
[1764152073303,0.0012,2918.8,2918.7,5.18198288]
[1764152073686,0.4833,2918.8,2918.7,5.18198288]
[1764152074742,0.0012,2918.8,2918.7,5.18198288]
[1764152075389,0.4833,2918.8,2918.7,5.18198288]
[1764152075590,1.0561,2918.8,2918.7,4.96498288]
[1764152075795,1.0553,2918.8,2918.7,5.18198288]
[1764152076210,1.37658439,2918.8,2918.7,5.18198288]
[1764152077427,2.1021785,2918.8,2918.7,1.5388]
[1764152077606,2.1021785,2918.8,2918.6,3.42729424]
[1764152077807,0.5016,2918.7,2918.6,3.42729424]
[1764152079894,0.0004,2918.8,2918.6,7.32449452]
[1764152080235,0.0004,2918.8,2918.6,3.64429424]
[1764152080236,0.3793,2918.7,2918.6,3.64429424]
[1764152080432,0.0004,2918.8,2918.6,7.07059452]
[1764152081236,0.0004,2918.8,2918.6,6.85359452]
[1764152081439,0.0004,2918.8,2918.6,7.07059452]
[1764152082319,0.0004,2918.8,2918.7,0.4709]
[1764152082752,0.0004,2918.8,2918.6,7.07059452]
[1764152083550,0.0004,2918.8,2918.7,1.5388]
[1764152083724,0.0004,2918.8,2918.7,2.0097]
[1764152084132,0.3834,2918.8,2918.7,1.5388]
[1764152084336,0.8763,2918.8,2918.7,1.5388]
[1764152084558,0.8763,2918.8,2918.7,4.96498288]
[1764152085358,0.8763,2918.8,2918.7,5.18198288]
[1764152087431,0.3834,2918.8,2918.7,5.18198288]
[1764152087738,0.8732,2918.8,2918.7,5.18198288]
[1764152087945,0.8732,2918.8,2918.7,4.96498288]
[1764152088151,1.19450846,2918.8,2918.7,5.18198288]
[1764152089754,1.19450846,2918.8,2918.7,4.96498288]
[1764152090530,1.19450846,2918.8,2918.7,1.5388]
[1764152092437,3.88807588,2918.8,2918.7,1.5388]
[1764152093464,3.88807588,2918.8,2918.6,0.001]
[1764152093465,4.61366999,2918.8,2918.6,0.001]
[1764152093667,1.54470257,2918.7,2918.6,0.001]
[1764152094335,2.28448856,2918.7,2918.6,0.001]
[1764152095231,1.54470257,2918.7,2918.6,0.001]
[1764152095430,2.28464365,2918.7,2918.6,0.001]
[1764152096069,1.54470257,2918.7,2918.6,0.001]
[1764152098644,9.85580995,2918.2,2918.1,0.001]
[1764152098850,1.13109811,2918.1,2918.0,0.001]
[1764152099161,3.05756193,2918.1,2918.0,0.001]
[1764152100547,3.05676193,2918.1,2918.0,0.001]
[1764152101488,3.05676193,2918.1,2915.3,0.13744877]
[1764152101489,0.405504,2916.5,2915.3,0.13744877]
[1764152101660,0.405504,2916.1,2914.8,0.4678]
[1764152101864,3.38036742,2915.6,2915.1,0.17931618]
[1764152102060,3.91867588,2915.6,2915.1,0.17931618]
[1764152102379,3.96326742,2915.6,2914.7,0.1953]
[1764152102541,1.99529411,2915.6,2914.7,0.17933764]
[1764152104288,2.40079811,2915.6,2914.7,0.17933764]
[1764152105143,2.40079811,2915.6,2914.6,0.001]
[1764152105144,4.46867511,2915.5,2914.6,0.001]
[1764152105344,5.03807511,2914.7,2914.6,0.001]
[1764152105583,5.25507511,2914.7,2914.6,0.001]
[1764152105743,5.72707511,2914.7,2914.6,0.001]
[1764152107232,5.72707511,2914.7,2911.0,0.1941]
[1764152107233,3.337577,2914.4,2911.0,0.1941]
[1764152107393,1.13109811,2914.1,2913.1,0.1494]
[1764152107581,0.4728,2914.0,2913.1,0.6209]
[1764152107787,0.218,2913.9,2913.1,0.6209]
[1764152108001,0.4021,2913.9,2913.1,0.6209]
[1764152108199,0.8749,2913.9,2913.1,0.6209]
[1764152108380,0.218,2913.9,2913.2,0.4715]
[1764152108608,0.218,2914.0,2913.8,0.4826]
[1764152108981,0.218,2914.0,2913.5,0.4715]
[1764152109188,0.6908,2914.0,2913.1,0.1494]
[1764152109485,0.6908,2914.0,2913.2,0.4715]
[1764152109885,0.218,2914.0,2913.2,0.4715]
[1764152110494,0.6908,2914.0,2913.2,0.4715]
[1764152110826,0.6908,2914.0,2913.1,0.1494]
[1764152111114,0.4728,2913.9,2913.1,0.1494]
[1764152111327,0.4728,2913.9,2913.1,0.6209]
[1764152113918,0.4728,2913.9,2913.1,3.58215006]
[1764152114114,0.4728,2913.9,2913.2,0.4634]
[1764152114818,0.4728,2913.9,2913.1,0.1494]
[1764152114997,0.4728,2913.9,2912.9,0.64284558]
[1764152115322,0.4728,2913.9,2913.1,0.1476]
[1764152117193,0.4728,2913.9,2913.1,4.0437382]
[1764152117401,0.4728,2913.9,2913.1,0.611]
[1764152119687,0.4728,2913.9,2913.2,0.4634]
[1764152121518,0.218,2914.0,2913.2,3.89601865]
[1764152121819,0.218,2914.0,2913.3,0.4634]